bitfinex/quotes_ETHUSD_20240604
["timestamp","ask_amount","ask_price","bid_price","bid_amount"]
[1717515158395,2.62879,3804.1,3802.6,2.62972]
[1717515158719,2.519,3804.5,3803.2,2.62931]
[1717515158850,2.519,3805.0,3803.6,2.62903]
[1717515159196,2.62811,3805.1,3803.9,2.62887]
[1717515159420,0.262797,3805.2,3804.1,2.62868]
[1717515159554,0.262797,3805.2,3804.2,1.32126577]
[1717515159758,2.62798,3805.2,3803.6,2.62906]
[1717515159952,2.62827,3804.8,3803.7,1.32126577]
[1717515161151,2.62827,3804.8,3803.8,2.62893]
[1717515161351,2.62798,3805.2,3803.9,1.32126577]
[1717515161585,2.62798,3805.2,3804.0,0.39501958]
[1717515161804,2.62798,3805.2,3804.1,1.32126577]
[1717515162495,2.62798,3805.2,3804.2,2.62864]
[1717515162795,2.62798,3805.2,3804.2,1.32126577]
[1717515162969,0.317988,3805.1,3804.2,1.32126577]
[1717515164388,2.62798,3805.2,3804.3,1.32126577]
[1717515164798,6.90820979,3805.4,3804.5,2.3101]
[1717515164799,6.35630979,3805.4,3804.5,2.3101]
[1717515165094,6.35630979,3805.4,3804.6,3.94965577]
[1717515165568,6.35630979,3805.4,3804.6,1.32126577]
[1717515165770,1.19840298,3805.3,3804.6,1.32126577]
[1717515166068,6.35630979,3805.4,3804.6,1.32126577]
[1717515166069,2.62741,3806.1,3804.7,2.62829]
[1717515166251,2.62741,3806.1,3804.8,1.32126577]
[1717515167655,3.0,3806.0,3804.8,1.32126577]
[1717515168081,1.98856981,3806.5,3805.2,2.4689]
[1717515168291,2.62708,3806.6,3805.3,1.70028235]
[1717515168597,2.62708,3806.6,3805.5,2.62776]
[1717515168773,2.62708,3806.6,3805.6,1.32126577]
[1717515169401,2.62708,3806.6,3805.7,2.62762]
[1717515169554,2.62708,3806.6,3805.8,1.32126577]
[1717515170294,2.889788,3806.6,3805.8,1.32126577]
[1717515171911,0.55,3806.5,3804.5,2.3733]
[1717515172057,2.519,3806.3,3804.6,1.32126577]
[1717515172856,3.0,3806.2,3804.6,1.32126577]
[1717515173056,2.62785,3805.4,3804.6,1.69072235]
[1717515173281,0.5519,3806.1,3804.6,1.69072235]
[1717515173282,6.35630979,3805.7,3804.6,1.69072235]
[1717515173956,2.62774,3805.6,3804.7,2.62832]
[1717515174297,2.62774,3805.6,3804.8,1.32126577]
[1717515176170,2.62798,3805.3,3804.5,2.3733]
[1717515176373,2.519,3804.9,3803.0,2.4708]
[1717515176556,2.62855,3804.4,3803.2,2.62933]
[1717515176757,2.62855,3804.4,3803.3,1.32126577]
[1717515176955,2.62855,3804.4,3803.4,2.62919]
[1717515177186,2.62855,3804.4,3803.5,1.32126577]
[1717515177393,2.62855,3804.4,3803.6,0.39504558]
[1717515177602,2.62855,3804.4,3803.7,1.32126577]
[1717515178311,2.62855,3804.4,3803.4,2.62919]
[1717515178594,2.62855,3804.4,3803.5,1.32126577]
[1717515180296,2.62855,3804.4,3803.6,2.62907]
[1717515180495,2.62855,3804.4,3803.7,1.71629935]
[1717515181005,5.62827,3804.8,3803.9,2.62885]
[1717515181158,6.35630979,3805.0,3804.0,3.69836577]
[1717515181556,6.35630979,3805.0,3804.2,2.62862]
[1717515181862,6.35630979,3805.0,3804.4,2.62848]
[1717515182202,6.35630979,3805.0,3804.5,1.32126577]
[1717515183065,6.35630979,3805.0,3804.6,2.62837]
[1717515183278,6.35630979,3805.0,3804.7,1.71622935]
[1717515183571,6.35630979,3805.6,3804.7,1.71622935]
[1717515183767,6.35630979,3805.6,3804.7,1.32126577]
[1717515184372,2.62778,3805.5,3804.7,1.32126577]
[1717515186313,2.62842,3804.6,3803.6,2.62904]
[1717515186514,2.62842,3804.6,3803.7,1.32126577]
[1717515186674,2.62842,3804.6,3803.8,3.25245058]
[1717515186877,2.62842,3804.6,3803.9,1.32126577]
[1717515189113,6.35630979,3804.9,3803.9,1.32126577]
[1717515189878,6.35630979,3804.9,3804.0,2.62877]
[1717515190113,6.35630979,3804.9,3804.1,1.32126577]
[1717515190278,6.35630979,3804.9,3804.1,1.7786224]
[1717515191581,6.35630979,3804.9,3804.1,1.32126577]
[1717515193507,2.6283,3804.8,3804.1,1.32126577]
[1717515195335,2.6283,3804.8,3803.8,0.62353058]
[1717515195498,2.62848,3804.5,3803.9,1.32126577]
[1717515196944,2.62868,3804.2,3803.2,2.6293]
[1717515197081,2.62868,3804.2,3803.3,1.32126577]
[1717515199718,2.6289,3803.9,3803.3,1.32126577]
[1717515199929,2.62866,3804.3,3803.3,1.32126577]
[1717515200136,2.62866,3804.3,3803.3,1.68219235]
[1717515200656,2.62866,3804.3,3803.4,2.62918]
[1717515200799,2.62866,3804.3,3803.5,1.32126577]
[1717515202424,1.24919698,3804.7,3803.5,1.32126577]
[1717515202425,2.62881,3804.0,3803.5,1.32126577]
[1717515206397,2.62902,3803.7,3803.0,4.91746]
[1717515206598,2.62902,3803.7,3803.1,1.32126577]
[1717515206798,2.62902,3803.7,3802.6,5.03951]
[1717515206998,2.62902,3803.7,3802.7,1.32126577]
[1717515207201,3.081222,3803.7,3802.7,1.32126577]
[1717515207571,2.62925,3803.4,3802.7,1.32126577]
[1717515211002,2.62947,3803.1,3802.7,1.32126577]
[1717515211337,2.62947,3803.1,3802.1,0.22929]
[1717515211535,2.62947,3803.1,3802.2,1.32126577]
[1717515211737,2.62947,3803.1,3802.3,0.39573558]
[1717515212007,2.62947,3803.1,3802.4,1.32126577]
[1717515212491,2.62967,3802.8,3802.4,1.32126577]
[1717515213266,2.62967,3802.8,3802.1,0.22929]
[1717515213436,2.62967,3802.8,3802.2,1.60721077]
[1717515213636,2.62967,3802.8,3802.2,1.32126577]
[1717515214256,1.893,3803.0,3801.6,4.93361]
[1717515214257,2.62986,3802.5,3801.6,4.93361]
[1717515214446,2.62986,3802.5,3801.7,1.32126577]
[1717515218654,2.63011,3802.2,3801.7,1.32126577]
[1717515220477,2.62979,3802.6,3801.8,1.32126577]
[1717515221225,2.63053,3801.6,3800.6,2.63114]
[1717515221522,2.63053,3801.6,3800.7,1.32126577]
[1717515225424,2.63071,3801.3,3800.7,1.32126577]
[1717515225939,2.6309,3801.0,3800.0,2.2917]
[1717515226088,2.6309,3801.0,3800.1,1.32126577]
[1717515228477,2.63107,3800.8,3800.1,1.32126577]
[1717515229999,2.63107,3800.8,3799.9,100.0]
[1717515230214,4.52429,3800.5,3800.0,1.32126577]
[1717515230492,4.52429,3800.5,3799.9,100.0]
[1717515232130,2.63148,3800.2,3799.9,100.0]
[1717515232304,4.52457,3800.0,3799.9,100.0]
[1717515232626,5.51297,3800.0,3799.9,100.0]
[1717515232833,6.06297,3800.0,3799.9,100.0]
[1717515233010,9.06297,3800.0,3799.9,100.0]
[1717515234915,13.599548,3800.0,3799.9,100.0]
[1717515235088,15.59513378,3800.0,3799.9,100.0]
[1717515235293,17.48813378,3800.0,3799.9,100.0]
[1717515235493,17.48813378,3800.0,3799.9,85.434]
[1717515235899,14.60673378,3800.0,3799.9,84.4456]
[1717515236096,17.23830378,3800.0,3799.9,84.4456]
[1717515236564,8.17715578,3800.0,3799.9,84.4456]
[1717515236715,10.07015578,3800.0,3799.9,84.4456]
[1717515236894,17.73213455,3800.0,3799.9,84.4456]
[1717515237233,20.36370455,3800.0,3799.9,84.4456]
[1717515237897,8.17715578,3800.0,3799.9,84.4456]
[1717515238121,7.52457,3800.0,3799.9,84.4456]
[1717515238835,11.93296577,3800.0,3799.9,84.4456]
[1717515239139,8.84583577,3800.0,3799.9,84.4456]
[1717515239434,9.39583577,3800.0,3799.9,84.4456]
[1717515239629,8.07457,3800.0,3799.9,84.4456]
[1717515239803,6.18157,3800.0,3799.9,84.4456]
[1717515240130,8.07457,3800.0,3799.9,84.4456]
[1717515240339,5.63157,3800.0,3799.9,84.4456]
[1717515240902,6.194727,3800.0,3799.9,84.4456]
[1717515242133,5.63157,3800.0,3799.9,84.4456]
[1717515242639,7.50283577,3800.0,3799.9,84.4456]
[1717515242838,13.17440577,3800.0,3799.9,84.4456]
[1717515244840,10.13440577,3800.0,3799.9,84.4456]
[1717515245152,28.48983477,3800.0,3799.9,69.6196]
[1717515245356,28.94045959,3800.0,3799.9,69.6196]
[1717515245557,35.79592259,3800.0,3799.9,69.6196]
[1717515246474,28.86143459,3800.0,3799.9,69.6196]
[1717515246929,27.80521359,3800.0,3799.9,69.6196]
[1717515247125,18.43799159,3800.0,3799.9,69.6196]
[1717515247456,16.10403059,3800.0,3799.9,69.6196]
[1717515248517,12.47803059,3800.0,3799.9,69.6196]
[1717515249093,2.63157,3800.0,3799.9,69.6196]
[1717515252297,8.98763979,3800.4,3799.9,69.6196]
[1717515253096,6.35630979,3800.4,3799.9,70.94086577]
[1717515253297,2.63105,3800.8,3800.0,1.32126577]
[1717515254284,2.63128,3800.5,3799.9,69.6196]
[1717515255009,2.63097,3800.9,3800.0,1.32126577]
[1717515255616,2.63097,3800.9,3800.1,2.3467]
[1717515255818,2.63097,3800.9,3800.1,3.66796577]
[1717515256426,2.63122,3800.6,3799.9,69.6196]
[1717515257104,2.63091,3801.0,3800.0,1.32126577]
[1717515257934,2.63114,3800.7,3799.9,71.33605252]
[1717515259613,2.63085,3801.1,3800.0,3.95283577]
[1717515259916,2.63085,3801.1,3800.1,2.3191]
[1717515260116,2.63085,3801.1,3800.2,1.32126577]
[1717515260429,2.63085,3801.1,3800.3,0.62719358]
[1717515261104,2.63104,3800.8,3800.3,0.62719358]
[1717515261492,2.63104,3800.8,3800.1,2.3191]
[1717515261697,2.63126,3800.5,3799.9,69.6196]
[1717515261994,2.63126,3800.5,3800.0,2.2589]
[1717515263627,2.631,3800.9,3800.0,3.58016577]
[1717515263928,2.631,3800.9,3800.0,6.23047122]
[1717515264225,2.63109,3800.7,3800.0,2.2589]
[1717515265143,2.63109,3800.7,3800.0,3.58016577]
[1717515266043,2.63109,3800.7,3800.1,1.32126577]
[1717515267199,2.63132,3800.4,3800.0,2.2589]
[1717515271049,2.63108,3800.8,3800.1,1.32126577]
[1717515273839,6.35630979,3801.0,3800.1,1.32126577]
[1717515275414,2.63095,3800.9,3800.1,1.32126577]
[1717515282221,2.63095,3800.9,3800.2,2.63142]
[1717515282462,2.63095,3800.9,3800.3,1.32126577]
[1717515289569,6.35630979,3801.0,3800.3,1.94242735]
[1717515290028,6.35630979,3801.0,3800.4,2.63129]
[1717515290227,6.35630979,3801.0,3800.5,1.32126577]
[1717515291086,2.63075,3801.2,3800.6,2.3815]
[1717515291290,2.63075,3801.2,3800.7,1.32126577]
[1717515300352,2.63094,3801.0,3800.6,2.3815]
[1717515300553,2.63094,3801.0,3800.6,3.70276577]
[1717515301051,0.89870598,3801.2,3800.2,2.4339]
[1717515301052,2.63108,3800.8,3800.2,2.4339]
[1717515301252,2.894188,3800.8,3800.2,2.4339]
[1717515301490,2.63108,3800.8,3800.2,2.4339]
[1717515302254,2.63108,3800.8,3800.3,1.32126577]
[1717515302849,2.63083,3801.1,3800.3,1.32126577]
[1717515305163,2.63083,3801.1,3800.3,3.95257577]
[1717515307978,2.63083,3801.1,3800.6,0.79]
[1717515308307,2.63083,3801.1,3800.7,1.32126577]
[1717515308599,2.63062,3801.4,3800.7,1.53239235]
[1717515308753,2.63062,3801.4,3801.0,3.2071]
[1717515309639,14.94039,3801.8,3801.2,0.79]
[1717515309815,0.56864331,3801.7,3801.2,0.79]
[1717515310218,0.56864331,3801.7,3801.0,3.73836577]
[1717515310935,2.6307,3801.3,3800.3,2.63135]
[1717515311230,2.6307,3801.3,3800.4,3.71426577]
[1717515311410,2.63089,3801.0,3800.4,3.71426577]
[1717515312806,2.63089,3801.0,3800.4,4.34883535]
[1717515314166,8.98693979,3801.4,3800.5,2.63122]
[1717515314303,8.98693979,3801.4,3800.6,1.32126577]
[1717515317671,6.35630979,3801.4,3800.7,2.63106]
[1717515317824,6.35630979,3801.4,3800.8,1.32126577]
[1717515318645,14.94039,3801.8,3800.8,1.32126577]
[1717515318646,21.29669979,3801.8,3800.8,1.32126577]
[1717515319058,21.29669979,3801.8,3800.9,2.2593]
[1717515319264,21.29669979,3801.8,3801.0,1.32126577]
[1717515319466,2.63053,3801.6,3801.0,1.32126577]
[1717515319667,4.76021398,3801.6,3801.0,1.32126577]
[1717515319863,2.63068,3801.3,3800.4,2.2593]
[1717515320063,2.63087,3801.1,3800.5,1.32126577]
[1717515331385,2.63087,3801.1,3800.6,0.06498424]
[1717515332504,2.63101,3800.9,3800.6,0.06498424]
[1717515333015,2.894111,3800.9,3800.6,0.06498424]
[1717515333323,2.894111,3800.9,3800.0,2.4769]
[1717515333324,2.6313,3800.5,3800.0,2.4769]
[1717515333523,2.6313,3800.5,3800.1,1.32126577]
[1717515335826,2.63146,3800.2,3799.9,69.6196]
[1717515336944,2.63157,3800.0,3799.9,69.6196]
[1717515339112,2.63157,3800.0,3799.9,69.68482629]
[1717515343285,2.63157,3800.0,3799.9,71.96402629]
[1717515344346,2.63157,3800.0,3799.9,69.68482629]
[1717515347066,2.63134,3800.4,3799.9,69.68482629]
[1717515347247,2.63134,3800.4,3799.9,72.33513174]
[1717515348088,2.63134,3800.4,3799.9,69.68482629]
[1717515349192,2.63157,3800.0,3799.9,69.68482629]
[1717515350387,3.0,3800.9,3799.9,69.68482629]
[1717515350388,2.63134,3800.4,3799.9,69.68482629]
[1717515359061,2.63134,3800.4,3799.9,71.00609206]
[1717515359281,2.63108,3800.8,3800.0,1.37389408]
[1717515359453,2.63108,3800.8,3800.1,2.65030545]
[1717515359653,2.63108,3800.8,3800.2,1.32126577]
[1717515359855,2.63108,3800.8,3800.2,1.38679373]
[1717515361091,2.63124,3800.5,3800.2,0.06552796]
[1717515361295,2.63124,3800.5,3799.9,69.6196]
[1717515361470,2.63124,3800.5,3800.3,0.06550736]
[1717515361676,2.63124,3800.5,3799.9,70.94086577]
[1717515361857,2.63124,3800.5,3800.4,0.06548676]
[1717515362076,2.63124,3800.5,3799.9,70.94086577]
[1717515362253,2.63124,3800.5,3800.4,0.06543432]
[1717515362593,2.63124,3800.5,3799.9,70.94086577]
[1717515362594,2.63144,3800.2,3799.9,69.6196]
[1717515364497,2.63157,3800.0,3799.9,69.6196]
[1717515367359,5.81314,3800.0,3799.9,69.6196]
[1717515367629,8.81314,3800.0,3799.9,69.6196]
[1717515369082,8.81314,3800.0,3799.9,69.6855149]
[1717515370301,5.63157,3800.0,3799.9,69.6855149]
[1717515370469,6.457868,3800.0,3799.9,69.6855149]
[1717515372880,9.089438,3800.0,3799.9,69.6855149]
[1717515373591,10.96070377,3800.0,3799.9,69.6855149]
[1717515374585,36.97031577,3800.0,3799.9,69.6855149]
[1717515374786,32.65928077,3800.0,3799.9,69.6855149]
[1717515375097,32.05043977,3800.0,3799.9,69.6855149]
[1717515375530,17.64782277,3800.0,3799.9,69.6855149]
[1717515375675,15.89951977,3800.0,3799.9,69.6855149]
[1717515377308,15.18344177,3800.0,3799.9,69.6855149]
[1717515377716,9.639438,3800.0,3799.9,69.6855149]
[1717515378011,6.457868,3800.0,3799.9,69.6855149]
[1717515378332,25.63959577,3800.0,3799.9,69.6855149]
[1717515378671,10.41070377,3800.0,3799.9,69.6855149]
[1717515378913,28.513504,3800.0,3799.9,69.6855149]
[1717515379115,9.089438,3800.0,3799.9,69.6855149]
[1717515379613,17.778768,3800.0,3799.9,69.6855149]
[1717515379921,15.147198,3800.0,3799.9,69.6855149]
[1717515380221,9.639438,3800.0,3799.9,69.6855149]
[1717515380942,7.007868,3800.0,3799.9,69.6855149]
[1717515381285,6.457868,3800.0,3799.9,69.6855149]
[1717515384023,5.63157,3800.0,3799.9,69.6855149]
[1717515384639,2.63157,3800.0,3799.9,69.6855149]
[1717515388632,5.63157,3800.0,3799.9,69.6855149]
[1717515389007,16.413804,3800.0,3799.9,69.6855149]
[1717515389422,19.138838,3800.0,3799.9,69.6855149]
[1717515389644,20.5170888,3800.0,3799.9,69.6855149]
[1717515389848,21.83835457,3800.0,3799.9,69.6855149]
[1717515390059,24.46992457,3800.0,3799.9,69.6196]
[1717515390352,21.83835457,3800.0,3799.9,69.68141296]
[1717515391143,24.46992457,3800.0,3799.9,69.68141296]
[1717515392845,30.82623436,3800.0,3799.9,66.45415142]
[1717515395754,30.27623436,3800.0,3799.9,66.45415142]
[1717515395966,32.17223436,3800.0,3799.9,66.19470296]
[1717515396414,34.43717201,3800.0,3799.9,66.19470296]
[1717515397045,35.00623576,3800.0,3799.9,66.19470296]
[1717515397256,35.55623576,3800.0,3799.9,66.19470296]
[1717515398219,34.98717201,3800.0,3799.9,66.19470296]
[1717515398420,35.55625075,3800.0,3799.9,66.19470296]
[1717515398728,32.02781675,3800.0,3799.9,66.19470296]
[1717515398942,34.65938675,3800.0,3799.9,66.19470296]
[1717515401465,34.65938675,3800.0,3799.9,65.52470296]
[1717515402843,34.65938675,3800.0,3799.9,65.26670296]
[1717515404761,34.57200224,3800.0,3799.9,65.26670296]
[1717515405961,37.20357224,3800.0,3799.9,65.00270296]
[1717515406178,37.20357224,3800.0,3799.9,64.75270296]
[1717515406939,34.57200224,3800.0,3799.9,64.75270296]
[1717515407353,37.20357224,3800.0,3799.9,64.75270296]
[1717515409164,34.02200224,3800.0,3799.9,64.75270296]
[1717515410265,36.65357224,3800.0,3799.9,64.75270296]
[1717515410466,37.20357224,3800.0,3799.9,64.75270296]
[1717515412527,37.20362944,3800.0,3799.9,64.75270296]
[1717515413128,37.15908123,3800.0,3799.9,64.75270296]
[1717515413568,37.15907984,3800.0,3799.9,64.75270296]
[1717515417955,36.32852132,3800.0,3799.9,64.75270296]
[1717515418613,36.32852132,3800.0,3799.9,58.08870296]
[1717515420101,43.47909132,3800.0,3799.9,54.00170296]
[1717515420325,43.81617982,3800.0,3799.9,53.11857129]
[1717515420459,43.06617982,3800.0,3799.9,53.11857129]
[1717515420658,43.81617982,3800.0,3799.9,53.05675833]
[1717515420917,38.64360982,3800.0,3799.9,53.11964524]
[1717515421057,39.30652132,3800.0,3799.9,53.11964524]
[1717515421261,40.09752132,3800.0,3799.9,53.11964524]
[1717515421462,5.26522,3798.5,3798.4,2.4441]
[1717515421764,4.54279253,3798.5,3798.4,2.4441]
[1717515422096,7.54279253,3798.5,3798.4,2.4441]
[1717515422712,6.75179253,3798.5,3798.4,2.4441]
[1717515422892,7.54279253,3798.5,3798.4,2.4441]
[1717515423097,6.20179253,3798.5,3798.4,2.4441]
[1717515423297,6.99285196,3798.5,3798.4,2.4441]
[1717515423842,6.20185196,3798.5,3798.4,2.68851]
[1717515424349,0.56924196,3798.5,3798.4,2.68851]
[1717515424566,0.791,3798.6,3798.4,2.68851]
[1717515424718,0.791,3798.6,3798.4,2.4441]
[1717515424930,8.978311,3798.5,3798.4,2.4441]
[1717515425221,8.28838296,3798.5,3798.4,2.4441]
[1717515425543,5.78894996,3798.5,3798.4,2.4441]
[1717515425904,5.23894996,3798.5,3798.4,2.4441]
[1717515426104,3.56924196,3798.5,3798.4,2.4441]
[1717515426346,4.36024196,3798.5,3798.4,2.4441]
[1717515429111,4.36024196,3798.5,3798.4,2.50513027]
[1717515432877,3.56924196,3798.5,3798.4,2.50513027]
[1717515436092,3.56924196,3798.5,3798.4,2.4441]
[1717515440320,3.56917883,3798.5,3798.4,2.4441]
[1717515444723,3.56919464,3798.5,3798.4,2.4441]
[1717515446622,22.44205764,3798.5,3798.4,2.4441]
[1717515446827,3.56919464,3798.5,3798.4,2.4441]
[1717515447199,2.63275,3798.3,3797.6,2.3586]
[1717515447401,2.63275,3798.3,3797.7,0.31496]
[1717515447402,0.56919464,3798.2,3797.7,0.31496]
[1717515448297,0.56919464,3798.2,3797.6,2.3586]
[1717515448503,0.56919464,3798.2,3797.8,0.06125866]
[1717515448811,2.6329,3798.1,3797.6,2.3586]
[1717515449033,0.56919464,3798.0,3797.6,2.3586]
[1717515449344,0.56919464,3798.0,3797.7,0.06127929]
[1717515449516,0.56919464,3798.0,3797.6,2.3586]
[1717515449724,0.56919464,3798.0,3797.8,0.06125866]
[1717515449931,0.56919464,3798.0,3797.6,2.3586]
[1717515450139,0.56919464,3798.0,3797.9,0.06123804]
[1717515450352,0.56919464,3798.0,3797.6,2.3586]
[1717515450653,0.56919464,3798.0,3797.9,0.06123804]
[1717515450850,0.56919464,3798.0,3797.6,2.3586]
[1717515451156,0.56926314,3798.0,3797.7,0.06127929]
[1717515451456,0.56926314,3798.0,3797.6,2.3586]
[1717515451814,0.56926314,3798.0,3797.7,0.06127929]
[1717515452153,0.56926314,3798.0,3797.6,2.3586]
[1717515452369,0.56926314,3798.0,3797.8,0.06125866]
[1717515452570,0.56926314,3798.0,3797.6,2.3586]
[1717515452571,0.56926733,3798.0,3797.6,2.3586]
[1717515452730,0.56926733,3798.0,3797.9,0.06123804]
[1717515453071,0.56926733,3798.0,3797.6,2.3586]
[1717515453439,0.56926733,3798.0,3797.9,0.06123804]
[1717515453651,0.56926733,3798.0,3797.6,2.3586]
[1717515454043,0.56926733,3798.0,3797.7,0.06127929]
[1717515454334,0.56926733,3798.0,3797.6,2.3586]
[1717515454559,0.56926733,3798.0,3797.8,0.06125866]
[1717515454765,0.56926733,3798.0,3797.6,2.3586]
[1717515454966,0.56926733,3798.0,3797.9,0.06123804]
[1717515455175,0.56926733,3798.0,3797.3,2.3181]
[1717515455352,0.56926733,3798.0,3797.9,0.06123804]
[1717515455545,0.56926733,3798.0,3797.9,2.3181]
[1717515456332,0.56926733,3798.0,3797.9,3.1091]
[1717515456589,0.56917291,3798.4,3798.0,2.4082]
[1717515456737,0.56917291,3798.4,3798.1,0.791]
[1717515457046,0.56917291,3798.6,3798.2,2.4082]
[1717515457454,0.56917291,3798.6,3798.3,0.0611974]
[1717515457784,0.56917291,3798.6,3798.2,2.4082]
[1717515457955,0.56917291,3798.6,3798.4,0.06117678]
[1717515458287,0.56917291,3798.6,3798.2,2.4082]
[1717515458288,3.56917291,3798.6,3798.5,0.06115615]
[1717515458435,0.56917291,3798.6,3798.5,0.06115615]
[1717515458642,0.56915859,3798.6,3798.2,0.791]
[1717515458959,1.0,3799.0,3798.3,2.412]
[1717515459285,4.56910628,3799.0,3798.3,2.412]
[1717515459580,0.56910628,3798.9,3798.3,2.412]
[1717515459853,0.56910628,3798.9,3798.5,2.3846]
[1717515460163,4.0,3799.0,3798.6,0.06093673]
[1717515460316,4.0,3799.0,3798.5,2.3846]
[1717515460643,4.0,3799.0,3798.7,0.06091611]
[1717515460813,4.0,3799.0,3798.6,0.06093673]
[1717515461016,4.0,3799.0,3798.8,0.06089549]
[1717515461218,4.0,3799.0,3798.5,2.3846]
[1717515461219,4.0,3799.0,3798.7,0.06091611]
[1717515461437,4.0,3799.0,3798.5,2.3846]
[1717515461752,0.791,3798.9,3798.1,2.3057]
[1717515461958,0.791,3798.7,3798.1,2.3057]
[1717515462171,0.791,3798.7,3798.2,0.06101921]
[1717515462313,0.56908344,3798.9,3798.2,0.06101921]
[1717515462512,0.56908344,3798.9,3798.1,2.3057]
[1717515462751,0.56908344,3798.9,3798.3,0.06099859]
[1717515462913,0.56908344,3798.9,3798.1,2.3057]
[1717515463266,0.56908344,3798.9,3798.4,0.06097797]
[1717515463578,0.56908344,3798.9,3798.1,2.3057]
[1717515463879,0.56908344,3798.9,3798.8,0.791]
[1717515464010,1.0,3799.0,3798.8,3.0536]
[1717515464208,1.0,3799.0,3798.9,2.2626]
[1717515464410,1.0,3799.0,3798.9,3.0536]
[1717515464626,1.0,3799.0,3798.9,3.11447487]
[1717515465534,1.0,3799.0,3798.9,3.42592236]
[1717515466273,3.0,3799.6,3799.0,2.283]
[1717515466409,3.0,3799.6,3799.3,0.791]
[1717515466607,3.0,3799.6,3799.4,2.283]
[1717515469950,8.11526173,3799.7,3799.4,2.283]
[1717515470616,8.11526173,3799.7,3799.5,0.05999265]
[1717515470809,1.75895194,3799.7,3799.5,0.05999265]
[1717515476424,0.17589519,3799.6,3799.5,0.05999265]
[1717515476862,1.75895194,3799.7,3799.4,2.283]
[1717515477755,1.75895194,3799.7,3799.0,2.2508]
[1717515478134,1.75895194,3799.7,3799.5,0.05994868]
[1717515478334,1.75895194,3799.7,3799.0,2.2508]
[1717515478555,1.75895194,3799.7,3799.6,0.0600369]
[1717515478746,2.19801213,3799.7,3799.6,0.0600369]
[1717515478947,2.6319,3799.6,3799.0,2.2508]
[1717515479161,2.6319,3799.6,3799.5,100.0]
[1717515479640,5.6319,3799.6,3799.5,100.0]
[1717515480762,1.75895194,3799.7,3799.5,102.4882]
[1717515480963,12.31,3800.7,3799.7,2.4882]
[1717515481183,18.66630979,3800.7,3799.7,2.4882]
[1717515481397,6.35630979,3800.7,3799.7,2.4882]
[1717515481546,6.35630979,3800.7,3799.8,2.65030545]
[1717515481752,8.98741979,3800.7,3799.8,2.65030545]
[1717515482050,8.98741979,3800.7,3799.7,2.4882]
[1717515482780,3.0,3800.6,3799.7,2.4882]
[1717515483799,2.63126,3800.5,3799.7,2.4882]
[1717515484355,2.63146,3800.2,3799.5,100.0]
[1717515484553,2.63163,3800.0,3799.5,100.0]
[1717515486086,3.37504205,3800.1,3799.5,100.0]
[1717515486262,2.63182,3799.7,3799.5,100.0]
[1717515486596,0.55,3799.6,3799.5,100.0]
[1717515486977,1.11899529,3799.6,3799.5,100.0]
[1717515487167,0.92508153,3799.6,3799.5,100.0]
[1717515487361,1.49407682,3799.6,3799.5,100.0]
[1717515487563,0.94407682,3799.6,3799.5,100.0]
[1717515487911,2.63182,3799.7,3799.5,100.0]
[1717515489100,2.63182,3799.7,3799.6,0.05822682]
[1717515489257,6.20082047,3799.7,3799.6,0.05822682]
[1717515490061,10.64040147,3799.7,3799.6,0.05822682]
[1717515490507,10.20506247,3799.7,3799.6,0.05822682]
[1717515490921,13.73246547,3799.7,3799.6,0.05822682]
[1717515491125,12.4111997,3799.7,3799.6,0.05822682]
[1717515492123,12.41127368,3799.7,3799.6,0.05822682]
[1717515492618,13.73253945,3799.7,3799.6,0.05822682]
[1717515492842,13.73253299,3799.7,3799.6,0.05822682]
[1717515493190,16.36435299,3799.7,3799.6,0.05822682]
[1717515494096,13.73253299,3799.7,3799.6,0.05822682]
[1717515494928,12.41126722,3799.7,3799.6,0.05822682]
[1717515495109,10.51619099,3799.7,3799.6,0.05822682]
[1717515495295,6.20088799,3799.7,3799.6,0.05822682]
[1717515495701,21.29421499,3799.7,3799.6,0.05822682]
[1717515495882,16.833192,3799.7,3799.6,0.05822682]
[1717515496086,21.16190726,3799.7,3799.6,0.05822682]
[1717515496692,21.71190726,3799.7,3799.6,0.05822682]
[1717515496891,21.26925526,3799.7,3799.6,0.05822682]
[1717515497894,21.26927001,3799.7,3799.6,0.05822682]
[1717515498803,23.90109001,3799.7,3799.6,0.05822682]
[1717515502122,19.71967001,3799.7,3799.6,0.05822682]
[1717515502413,6.20092324,3799.7,3799.6,0.05822682]
[1717515502794,3.20086178,3799.7,3799.6,0.05822682]
[1717515504202,6.20086178,3799.7,3799.6,0.05822682]
[1717515504909,0.56904178,3799.7,3799.6,0.05822682]
[1717515505082,0.56900357,3799.9,3799.6,0.05822682]
[1717515505373,6.35630979,3800.0,3799.6,0.05822682]
[1717515506177,3.0,3799.9,3799.6,0.05822682]
[1717515508773,3.0,3799.9,3799.6,1.76038007]
[1717515509286,3.0,3800.0,3799.6,1.76038007]
[1717515513449,3.0,3800.0,3799.7,2.3241]
[1717515513661,3.0,3800.3,3799.7,2.3241]
[1717515513875,0.56892446,3800.2,3799.8,0.05424811]
[1717515514229,0.56892446,3800.2,3799.8,1.93741166]
[1717515514434,8.98759979,3800.5,3799.9,2.40488742]
[1717515514671,2.63129,3800.5,3799.9,2.40488742]
[1717515515468,0.56889497,3800.4,3799.9,2.40488742]
[1717515515783,2.63138,3800.3,3799.9,2.40488742]
[1717515516519,2.6315,3800.1,3799.9,0.05378742]
[1717515516817,0.5689691,3800.0,3799.5,100.0]
[1717515517019,3.5689691,3800.0,3799.5,100.0]
[1717515517160,3.0,3800.0,3799.6,0.05375882]
[1717515518391,2.63165,3799.9,3799.6,0.05375882]
[1717515520106,2.63139,3800.3,3799.7,2.4845]
[1717515520414,2.63139,3800.3,3799.8,0.05381521]
[1717515520569,2.63152,3800.1,3799.8,0.05381521]
[1717515520905,2.63152,3800.1,3799.9,0.05379112]
[1717515521402,2.63152,3800.1,3800.0,0.05370081]
[1717515521563,3.2004908,3800.1,3800.0,0.05370081]
[1717515521762,3.2004908,3800.1,3799.5,100.0]
[1717515522005,2.63152,3800.1,3800.0,0.05370081]
[1717515522560,8.98758979,3800.5,3799.5,102.10961261]
[1717515522760,3.56894352,3800.4,3800.0,0.05370081]
[1717515522963,3.0,3800.4,3800.1,2.2986]